Cogmind - Beta 15 @@@ ROGUE MODE // 2025.08.06 @ 22:36:08 Player: Mogwok Wargfriend Result: Destroyed by YI-UF0 with YI-UF0's Doublenader Performance ------------- Evolutions (0) 0 Regions Visited (2) 400 Robots Destroyed (36) 180 Value Destroyed (761) 761 Prototype IDs (0) 0 Alien Tech Used (0) 0 Bonus (-24) -24 TOTAL SCORE: 1317 Bonus ------- Friendly Fire -24 Cogmind --------- Core Integrity 0/250 Matter 205/300 Energy 250/250 System Corruption 1% Temperature Cool (0) Movement Rolling (120) Ox2 Location -10/Mines Parts ------- > --- POWER (1) -------- Ion Engine > --- PROPULSION (2) --- Armored Wheel > --- UTILITY (2) ------ Large Storage Unit Targeting Computer > --- WEAPON (2) ------- Mini Grenade Launcher Mini Grenade Launcher > --- INVENTORY (15) --- Ion Engine Armored Wheel Armored Wheel Cooling System Large Storage Unit Large Matter Pod (150) Sensor Array Targeting Computer ECM Suite Hacking Suite Light Cannon Light Cannon Mini Grenade Launcher Peak State ------------ > --- POWER ------------ Ion Engine > --- PROPULSION ------- Armored Wheel Armored Wheel > --- UTILITY ---------- Large Storage Unit Targeting Computer > --- WEAPON ----------- Light Cannon Mini Grenade Launcher > --- INVENTORY -------- Ion Engine Cooling System Large Storage Unit Large Matter Pod Sensor Array Signal Interpreter Targeting Computer ECM Suite Hacking Suite Light Cannon Light Cannon Light Cannon Mini Grenade Launcher Mini Grenade Launcher Mini Grenade Launcher [Rating: 12] Favorites ----------- Power Ion Engine Engine Ion Engine Propulsion Aluminum Leg Leg Aluminum Leg Wheel Compact Wheel Utility Targeting Computer Device Seismic Detector Storage Medium Storage Unit Processor Targeting Computer Weapon Light Cannon Energy Gun Small Laser Ballistic Cannon Light Cannon Launcher Mini Grenade Launcher Build | -11 -10 -10 ------- Run | Yrd Mat Min Slots Evolved . | . . . Power . | . . . Propulsion . | . . . Utility . | . . . Weapon . | . . . Parts Attached 26 | 7 17 2 Power 2 | 1 1 . Engine 2 | 1 1 . Core . | . . . Reactor . | . . . Propulsion 7 | 2 5 . Treads . | . . . Leg 3 | 2 1 . Wheel 4 | . 4 . Hover . | . . . Flight . | . . . Utility 6 | 2 4 . Device 2 | 1 1 . Storage 3 | 1 2 . Processor 1 | . 1 . Hackware . | . . . Protection . | . . . Artifact . | . . . Weapon 11 | 2 7 2 Energy Gun 5 | 2 3 . Energy Cannon . | . . . Ballistic Gun . | . . . Ballistic Cannon 3 | . 3 . Launcher 3 | . 1 2 Special Weapon . | . . . Impact Weapon . | . . . Slashing Weapon . | . . . Piercing Weapon . | . . . Special Melee Weapon . | . . . Unidentified Prototypes . | . . . Parts Lost 9 | . 6 3 Power 1 | . 1 . Propulsion 3 | . 2 1 Utility . | . . . Weapon 5 | . 3 2 Highest Loss Streak 4 | . 4 3 To Critical Strikes . | . . . Average Backups 10 | 3 10 14 Power . | . . 1 Propulsion 1 | 1 1 2 Utility 4 | . 4 7 Weapon 3 | . 3 4 Tool/Special . | . . . Unused Backups 25 | . 12 13 Power 1 | . . 1 Propulsion 4 | . 2 2 Utility 12 | . 5 7 Weapon 8 | . 5 3 Tool/Special . | . . . Average Slot Usage (%) 99 | . 99 100 Engine 14 | . 14 14 Leg 11 | . 11 . Wheel 16 | . 16 28 Device 5 | . 6 . Storage 14 | . 14 14 Processor 8 | . 7 14 Energy Gun 11 | . 12 . Ballistic Cannon 10 | . 10 14 Launcher 5 | . 5 14 Peak Build Rating 12 | 7 12 12 Average Rating 8 | 5 8 11 On Entrance 6 | . 7 12 Naked Turns . | . . . Heaviest Build 29 | 15 29 29 Greatest Support 26 | 20 26 24 Greatest Overweight (x) 2 | 2 1 1 Average Overweight (x) . | . . 1 Largest Inventory Capacity 15 | 8 15 15 Average Capacity 10 | 6 10 15 Most Carried 15 | 5 15 15 Average Carried 10 | 3 10 14 Final Capacity 15 | 8 15 15 Final Carried 15 | 5 15 13 Class Distribution -------------------- 97% | Mutant Dominant Class ---------------- Mutant | -10/Materials Mutant | -10/Mines Resources | -11 -10 -10 ----------- Run | Yrd Mat Min Matter Collected 791 | 270 497 24 Remotely . | . . . Salvage Created 1096 | 126 946 24 Parts 60 | 6 52 2 Haulers Intercepted 2 | . 2 . Recyclers Shooed . | . . . Parts Field Recycled . | . . . Retrieved Matter . | . . . Parts Self-Destructed . | . . . Prevented . | . . . Kills | -11 -10 -10 ------- Run | Yrd Mat Min Combat Hostiles Destroyed 22 | . 21 1 Guns 11 | . 11 . Cannons 7 | . 7 . AOE 4 | . 3 1 Classes Destroyed 8 | 2 6 . Worker 1 | . 1 . Tunneler 2 | 2 . . Hauler 2 | . 2 . Recycler 4 | 1 3 . Operator 2 | . 2 . Watcher 3 | . 3 . Swarmer 9 | . 9 . Grunt 13 | . 12 1 Best Kill Streak 5 | 3 5 1 Combat Bots Only 5 | . 5 1 Max Kills in Single Turn 2 | 1 2 1 Gunslinging 1 | . 1 . Exploded 2 | . 2 1 Melee . | . . . Uniques/NPCs Destroyed . | . . . Combat | -11 -10 -10 -------- Run | Yrd Mat Min Hostile Shots Fired 139 | . 119 20 Missed 50 | . 48 2 Hits 89 | . 71 18 Projectile 89 | . 71 18 AOE 17 | . . 17 Damage Taken 1365 | 26 777 562 Core 254 | . 118 136 Absorbed by Shields . | . . . Core Remaining (%) 100 | 100 . . Volleys Fired 96 | 7 82 7 Largest 2 | 2 2 2 Hottest 80 | 80 80 60 Shots Fired 180 | 14 152 14 Gun 121 | 14 107 . Cannon 49 | . 43 6 Launcher 10 | . 2 8 Special . | . . . Kinetic 49 | . 43 6 Thermal 53 | . 53 . Explosive 10 | . 2 8 Electromagnetic 68 | 14 54 . Robot Hit Streak 18 | 9 18 3 Robot Miss Streak 4 | 2 4 2 Penetration Max . | . . . Secondary Targets 4 | . 4 . Max Gunslinging Chain 1 | . 1 . Shots Hit Robots 109 | 11 90 8 Core Hits 51 | 3 42 6 Critical Kills . | . . . Critical Parts Destroyed . | . . . Critical Strikes . | . . . Melee Attacks . | . . . Impact . | . . . Slashing . | . . . Piercing . | . . . Sneak Attacks . | . . . Combat Hostiles . | . . . Follow-up Attacks . | . . . Damage Inflicted 1901 | 177 1576 148 Guns 906 | 144 762 . Cannons 517 | . 486 31 Explosions 478 | 33 328 117 Melee . | . . . Ramming . | . . . Kinetic 517 | . 486 31 Thermal 573 | 33 540 . Explosive 263 | . 146 117 Electromagnetic 548 | 144 404 . Impact . | . . . Slashing . | . . . Piercing . | . . . Highest Corruption 1 | . 1 1 Average Corruption 1 | . 1 1 Corruption Purged . | . . . Corruption Blocked . | . . . Effects 7 | . 5 2 Message Errors 1 | . 1 . Matter Fused 2 | . 1 1 Data Loss (minor) 1 | . 1 . Misfires 3 | . 2 1 Overload Shots . | . . . Overflow Damage 60 | . 60 . Projectiles 29 | . 29 . Explosions 31 | . 31 . Melee . | . . . Knockbacks 3 | . 3 . Impact . | . . . Kinetic 3 | . 3 . Secondary . | . . . Self-Inflicted Damage 26 | 26 . . Shots 1 | 1 . . Rammed . | . . . Targets Rammed . | . . . Kicked . | . . . Crushed . | . . . Highest Temperature 240 | 54 240 9 Average Temperature 48 | 28 50 9 Received Heat Transfer 312 | . 303 9 Siege Activations . | . . . Martial Activations . | . . . Shielding Activations . | . . . Robots Disrupted . | . . . Combat Hostiles . | . . . Robots Corrupted . | . . . Combat Hostiles . | . . . Parts Fried 3 | 2 1 . Impact Corruptions . | . . . Robots Melted . | . . . Combat Hostiles . | . . . Parts Melted . | . . . Heat Transferred 900 | . 900 . Parts Sabotaged . | . . . Parts Stolen . | . . . Parts Stripped . | . . . Power Chain Reactions 3 | 1 2 . Alert | -11 -10 -10 ------- Run | Yrd Mat Min Maximum Alert Level 1 | . 1 . Low Security (%) 65 | 100 62 100 Level 1 34 | . 37 . Level 2 . | . . . Level 3 . | . . . Level 4 . | . . . Level 5 . | . . . High Security . | . . . Max Security . | . . . Peak Influence 262 | 10 262 102 Initial 74 | . . 74 Average 152 | 1 163 86 Influence Increases 866 | 15 803 48 Destroy 0b10 Robot/C 440 | . 420 20 Destroy 0b10 Robot/NC 70 | 15 55 . Destroy Leader 90 | . 90 . Successful Hack 33 | . 33 . Disable Machine 120 | . 120 . Destroy Structure 98 | . 70 28 Lose Combat Pursuer 15 | . 15 . Influence Decreases 814 | 15 612 187 Entered New Map 117 | . . 117 Time Decay 607 | 15 552 40 Lost Part 90 | . 60 30 Squads Dispatched 5 | . 5 . Investigation 3 | . 3 . Extermination . | . . . Reinforcement 2 | . 2 . Assault . | . . . Garrison . | . . . Intercept . | . . . Searches Triggered . | . . . Construction Impeded . | . . . Haulers Reinforced . | . . . Active Scanning Responses . | . . . Cargo Convoy Interrupts . | . . . Stealth | -11 -10 -10 --------- Run | Yrd Mat Min Distress Signals 1 | . 1 . Communications Jammed . | . . . Distress Signals . | . . . Times Spotted 34 | . 32 2 Peak Tracking Total 4 | . 4 1 Tactical Retreats 2 | . 2 . Traps | -11 -10 -10 ------- Run | Yrd Mat Min Traps Triggered 4 | . 4 . Indirectly . | . . . Trap Hack Attempts . | . . . Triggered . | . . . Disarmed . | . . . Reprogrammed . | . . . Reused . | . . . Traps Extracted . | . . . Installed . | . . . Triggered . | . . . Machines | -11 -10 -10 ---------- Run | Yrd Mat Min Machines Disabled 8 | . 8 . Max in Single Turn 3 | . 3 . Machines Repaired . | . . . Machines Dismantled . | . . . Machines Sabotaged . | . . . Overloaded Fab Kills . | . . . Hacking | -11 -10 -10 --------- Run | Yrd Mat Min Machines Accessed 7 | . 7 . Terminals 6 | . 6 . Fabricators . | . . . Repair Stations . | . . . Recycling Units 1 | . 1 . Scanalyzers . | . . . Garrison Access . | . . . Total Hacks 18 | . 18 . Successful 9 | . 9 . Failed 8 | . 8 . Catastrophic 1 | . 1 . Database Lockouts 1 | . 1 . Manual 20 | . 20 . Terminals 16 | . 16 . Fabricators . | . . . Repair Stations . | . . . Recycling Units 2 | . 2 . Scanalyzers . | . . . Garrison Access . | . . . Terminal Hacks 3 | . 3 . Robot Analysis 1 | . 1 . Recall Investigation 1 | . 1 . Registered Components 1 | . 1 . Fabricator Hacks . | . . . Repair Station Hacks . | . . . Recycling Unit Hacks 1 | . 1 . Report Inventory 1 | . 1 . Scanalyzer . | . . . Garrison Access Hacks . | . . . Unauthorized Hacks 5 | . 5 . Terminals 4 | . 4 . Assimilate 1 | . 1 . Botnet 2 | . 2 . Operators 1 | . 1 . Fabricators . | . . . Repair Stations . | . . . Recycling Units 1 | . 1 . Reject 1 | . 1 . Scanalyzers . | . . . Garrison Access . | . . . Data Cores Recovered . | . . . Used . | . . . Hacking Detections 7 | . 7 . Full Trace Events 1 | . 1 . Feedback Events . | . . . Feedback Blocked . | . . . Robot Schematics Acquired . | . . . Robots Built . | . . . Authchips . | . . . Time . | . . . Total Robot Build Rating . | . . . Part Schematics Acquired . | . . . Parts Built . | . . . Authchips . | . . . Time . | . . . Total Part Build Rating . | . . . Parts Repaired . | . . . Time . | . . . Parts Recycled . | . . . Recycled Matter . | . . . Retrieved Matter . | . . . Retrieved Components . | . . . Parts Scanalyzed . | . . . Part Schematics Acquired . | . . . Parts Damaged . | . . . Bothacking | -11 -10 -10 ------------ Run | Yrd Mat Min Used RIF Installer . | . . . Robots Hacked . | . . . Non-combat . | . . . Combat . | . . . Robot Hacks Applied . | . . . Relay Couplers Released . | . . . Fabnet Peak Effective % . | . . . Robots Rewired . | . . . Allies Hacked . | . . . Hacks Repelled . | . . . Allies | -11 -10 -10 -------- Run | Yrd Mat Min Total Allies 1 | . 1 . Largest Group 1 | . 1 1 Highest-Rated Group 10 | . 10 10 Highest-Rated Ally 10 | . 10 10 Total Orders . | . . . Ally Attacks . | . . . Total Damage . | . . . Kills . | . . . Allies Corrupted . | . . . Allies Melted . | . . . Intel | -11 -10 -10 ------- Run | Yrd Mat Min Active Infowar (turns) 564 | 43 521 . Seismic 564 | 43 521 . Robot Analysis Total 1 | . 1 . Derelict Logs Recovered . | . . . Drone Launches . | . . . Drone Recoveries . | . . . Exploration | -11 -10 -10 ------------- Run | Yrd Mat Min Turns Passed 2054 | 99 1869 86 Spaces Moved 1412 | 62 1297 53 Core 21 | 21 . . Treads . | . . . Legs 349 | 41 308 . Wheels 1042 | . 989 53 Hover . | . . . Flight . | . . . Fastest Speed 50 | 50 90 105 Average Speed 102 | 102 102 105 Slowest Speed 150 | 150 120 105 Overloaded Moves . | . . . Propulsion Burnouts . | . . . Robots Hopped . | . . . Potential Cave-ins . | . . . Cave-ins Triggered . | . . . Exploration Rate (%) 40 | 5 100 17 Regions Visited 2 Branch Regions 1 Pre-discovered Areas . | . . . Known Exits Taken . | . . . Unknown Exits Taken 2 | 1 1 . Scrap Searched 1 | . . 1 Spaces Dug . | . . . Terrain Destroyed 142 | . 86 56 Melee . | . . . Projectile . | . . . AOE 142 | . 86 56 Terrain Rammed . | . . . Walls Destroyed . | . . . Machines Disabled . | . . . Actions | -11 -10 -10 --------- Run | Yrd Mat Min Total 1843 | 80 1692 71 Wait 253 | . 244 9 Move 1410 | 61 1296 53 Hop . | . . . Pick Up 33 | 5 28 . Fast Attach 13 | 7 6 . Attach 8 | . 6 2 Detach 2 | . 2 . Swap 5 | . 5 . Drop 23 | . 23 . Fire 96 | 7 82 7 Melee . | . . . Ram . | . . . Kick . | . . . Crush . | . . . Escape Stasis . | . . . Rewire . | . . . Trap . | . . . Miscellaneous . | . . . Route ------- -11/Scrapyard -10/Materials (discovered 5 exits: [*Mat x3] / [*Min] / [*Sub]) -10/Mines History --------- Turn | Location | Event 25 | -11/Scrapyard | Discovered new exit (range 14) 100 | -11/Scrapyard | Entered Materials 305 | -10/Materials | Build established: Mutant 570 | -10/Materials | Discovered new exit (range 16) 593 | -10/Materials | Discovered new exit (range 12) 600 | -10/Materials | Derelicts attacked the area 925 | -10/Materials | Lost 4 parts (1p2n1w) 1093 | -10/Materials | Central database locked down 1268 | -10/Materials | Discovered new exit (range 3) 1513 | -10/Materials | Discovered new exit (range 12) 1864 | -10/Materials | Discovered new exit (range 10) 1969 | -10/Materials | Entered Mines 1969 | -10/Mines | Accompanied by 1 ally 2003 | -10/Mines | YI-UF0 nonchalantly dropped a Grenade Launcher on the ground 2038 | -10/Mines | Core integrity fell below 50% 2047 | -10/Mines | Core integrity fell below 20% 2055 | -10/Mines | Destroyed by YI-UF0 with YI-UF0's Doublenader Last Messages --------------- 02011_ Searching scrap... 02011_ Found Sml. Matter Pod. 02011_ Found Med. Matter Pod. 02011_ Found Aluminum Leg. 02011_ Found Tractor Beam. 02011_ Found 69 Matter. 02012_ Acquired 3 matter. 02014_ YI-UF0 mumbles something. 02034_ System corrupted: FCS attempts to trigger Mni. Grenade Launcher. 02034_ System corrupted: Mni. Grenade Launcher misfires. 02036_ YI-UF0: "BOOM TO YOU TOO!" 02038_ YI-UF0 mumbles something. 02042_ Mni. Grenade Launcher destroyed. 02044_ The unstable cave ceiling collapses. 02051_ Lgt. Cannon destroyed. 02053_ The unstable cave ceiling collapses. 02053_ Arm. Wheel destroyed. 02054_ The unstable cave ceiling collapses. Map ----- +----------------------------------------------------+ | | | | | | | | | | | | | | | | | | | | | | | | | | | | | | | | | ?????????????????????????????????????????????? | | ?????????????????????????????????????????????? | | ?????????????????????????????????????????????? | | ??????????????????????????###????????????????? | | ???????????????????????### ####??????????????? | | ?????????????????????### #??????????????? | | ????????????????????## ##?????????????? | | ????????????????????# ###???????????? | | ????????????????????# #???????????? | | ????????????????????# # @ #???????????? | | ???????????????????# #??????????? | | ??????????????????# # #??????????? | | ?????????????????# ###??????????? | | ?????????????????# o #????????????? | | ????????????????# g ##????????????? | | ????????????????# ##????????????? | | ????????????????# ######??????? | | ????????????????# !%! #??????? | | ????????????????# = #??????? | | ???????????????? # ## #??????? | | ???????????????## # ##] ## #??????? | | ????????????????#?######### ### #??????? | | ???????????????????????## ##?# #??????? | | ??????????????????????## #### ####???? | | ?????????????????????## # # ###?? | | ?????????????????????# #?? | | ?????????????????????# * #?? | | ?????????????????????## ## # #?? | | ??????????????????????###?## #### = #?? | | ???????????????????????????####??# #?? | | ?????????????????????????????????# ##?? | | ????????????????????????????????## #?? | | ????????????????????????????????# ###?? | | ????????????????????????????????# #???? | +----------------------------------------------------+ Best States ------------- Heat Dissipation 35 Energy Generation 10 Energy Capacity 250 Matter Stores 300 Matter Capacity 300 Sight Range 16 Terrain Scan Density 10 Evasion (%) 55 Targeting Accuracy 5 Item Schematics ----------------- None Robot Schematics ------------------ None Fabricated ------------ Nothing Repaired ---------- Nothing Alien Tech Used ----------------- None Achievements -------------- None Challenges ------------ None Game ------ Seed CentriumDerelictHammer Manual? 0 Play Time 00:21:12 Cumulative 285.5 hours Start 2025.08.06 @ 22:04:18 End 2025.08.06 @ 22:36:08 Sessions 1 Manual Loads 0 Difficulty Rogue Special Mode None Game No. 253 Rogue 253 Adventurer 0 Explorer 0 Win Type - Total 1 Types 1/0/0/0/0/0/0/0/0/0 Lore% 65 Gallery% 63 Achievement% 50 Wizard Run 0 Options --------- Layout 2 ASCII 1 Keyboard 1 Movement Numpad Keybinds 0 Fullscreen 2 Font 32/TamsynBold Map View 50x44 Zoom Use 0% Tactical HUD 1 Map Filters NONE Filters NONE Steam 1 RUN: 11554303-9d0c-4b74-ab9e-674cd44c72bd